fUST/lending_fUST_20260204
["ID","MTS","AMOUNT","RATE_DAILY","PERIOD"]
[404438372,1770141046645,-437.65092217,0.00014247,2]
[404438373,1770141047867,-607.22203791,0.00014247,2]
[404438374,1770141047877,-721.32704616,0.00014247,2]
[404438378,1770141063993,508.8395138,0.00013273,2]
[404438379,1770141080133,500.0,0.00013273,2]
[404438380,1770141080306,500.0,0.00013273,2]
[404438460,1770141137012,500.0,0.00013273,2]
[404438512,1770141182933,300.0,0.00013698,2]
[404438515,1770141184174,500.0,0.00013273,2]
[404438523,1770141189386,250.0,0.00013198,2]
[404438529,1770141198764,500.0,0.00013273,2]
[404438530,1770141198968,500.0,0.00013273,2]
[404438559,1770141242642,300.0,0.00013698,2]
[404438561,1770141243284,1232.17468921,0.00013699,2]
[404438562,1770141243322,152.71023469,0.00013273,2]
[404438563,1770141244993,208.168034,0.00013273,2]
[404438564,1770141245019,500.0,0.00013273,2]
[404438565,1770141245153,219.85688498,0.00013273,2]
[404438566,1770141245176,280.14311502,0.00013273,2]
[404438567,1770141245384,500.0,0.00013273,2]
[404438568,1770141245412,500.0,0.00013273,2]
[404438569,1770141246433,500.0,0.00013273,2]
[404438570,1770141257119,500.0,0.00013273,2]
[404438583,1770141302639,300.0,0.00013698,2]
[404438584,1770141303825,500.0,0.00013273,2]
[404438585,1770141307024,1200.0,0.00013698,2]
[404438586,1770141319487,500.0,0.00013273,2]
[404438587,1770141320048,500.0,0.00013273,2]
[404438588,1770141324125,-500.0,0.00013699,2]
[404438589,1770141324154,-500.0,0.00013699,2]
[404438590,1770141324182,-500.0,0.00013699,2]
[404438591,1770141324226,-500.0,0.00013699,2]
[404438592,1770141324260,-500.0,0.00013699,2]
[404438593,1770141324290,-534.00210773,0.00013699,2]
[404438594,1770141324321,-500.0,0.00013699,2]
[404438595,1770141324352,-500.0,0.00013699,2]
[404438596,1770141324384,-500.0,0.00013699,2]
[404438597,1770141324413,-432.00578454,0.00013699,2]
[404438598,1770141326810,-67.99421546,0.00013699,2]
[404438599,1770141326840,-500.0,0.00013699,2]
[404438600,1770141326869,-500.0,0.00013699,2]
[404438601,1770141326898,-500.0,0.00013699,2]
[404438602,1770141326926,-231.40230568,0.0001376,2]
[404438603,1770141326956,-1000.0,0.00013821,2]
[404438604,1770141326986,-1000.0,0.00013821,2]
[404438605,1770141327016,-1000.0,0.00013821,2]
[404438606,1770141327162,-1000.0,0.00013821,2]
[404438607,1770141327190,-1000.0,0.00013821,2]
[404438608,1770141327220,-1000.0,0.00013821,2]
[404438609,1770141327248,-1000.0,0.00013821,2]
[404438610,1770141327277,-1000.0,0.00013821,2]
[404438611,1770141334299,-1000.0,0.00013821,2]
[404438612,1770141334334,-1463.7625528,0.00013964,2]
[404438613,1770141334366,-1791.2473097,0.00013964,2]
[404438614,1770141334562,-1489.990275,0.00013964,2]
[404438615,1770141334596,-500.0,0.00014247,2]
[404438616,1770141334635,-1000.0,0.00014247,2]
[404438617,1770141334667,-1000.0,0.00014247,2]
[404438618,1770141334710,-500.0,0.00014247,2]
[404438619,1770141334742,-507.77467851,0.00014247,2]
[404438620,1770141366230,500.0,0.00013273,2]
[404438621,1770141377099,500.0,0.00013273,2]
[404438678,1770141439078,300.0,0.00013673,2]
[404438680,1770141439157,326.84602382,0.00013273,2]
[404438684,1770141439729,500.0,0.00013273,2]
[404438721,1770141482919,300.0,0.00013698,2]
[404438722,1770141486820,500.0,0.00013273,2]
[404438724,1770141498707,500.0,0.00013273,2]
[404438726,1770141542704,300.0,0.00013698,2]
[404438727,1770141550806,5000.0,0.00013699,2]
[404438728,1770141558117,300.0,0.00013673,2]
[404438729,1770141558613,500.0,0.00013273,2]
[404438730,1770141567258,-500.0,0.00013699,2]
[404438731,1770141567303,-500.0,0.00013699,2]
[404438732,1770141567344,-500.0,0.00013699,2]
[404438733,1770141567384,-500.0,0.00013699,2]
[404438734,1770141567426,-500.0,0.00013699,2]
[404438735,1770141567468,-500.0,0.00013699,2]
[404438736,1770141567511,-500.0,0.00013699,2]
[404438737,1770141567547,-357.38498917,0.00013699,2]
[404438738,1770141567588,-500.0,0.00013699,2]
[404438739,1770141567625,-512.68693584,0.00013699,2]
[404438740,1770141568147,-1000.0,0.00013821,2]
[404438741,1770141568174,-1000.0,0.00013821,2]
[404438742,1770141568201,-1000.0,0.00013821,2]
[404438743,1770141568228,-1000.0,0.00013821,2]
[404438744,1770141568257,-276.4095239,0.00014162,2]
[404438745,1770141568289,-341.55285662,0.00014162,2]
[404438746,1770141568326,-764.08523896,0.00014162,2]
[404438747,1770141568356,-2487.68571506,0.00014162,2]
[404438748,1770141568387,-394.34047643,0.00014162,2]
[404438749,1770141568418,-1132.00259529,0.00014162,2]
[404438750,1770141568453,-443.78194852,0.00014162,2]
[404438751,1770141568484,-300.0,0.00014221,2]
[404438752,1770141568516,-269.3195799,0.00014246,2]
[404438753,1770141568546,-500.0,0.00014246,2]
[404438754,1770141568596,-798.70124785,0.00014247,2]
[404438755,1770141568627,-1000.0,0.00014247,2]
[404438756,1770141568656,-631.08756037,0.00014247,2]
[404438757,1770141568684,-912.65985558,0.00014247,2]
[404438758,1770141573248,-1000.0,0.00014247,2]
[404438759,1770141573276,-1000.0,0.00014247,2]
[404438760,1770141573303,-1000.0,0.00014247,2]
[404438761,1770141573333,-1000.0,0.00014247,2]
[404438762,1770141573363,-998.3828765,0.00014247,2]
[404438763,1770141573561,-3.244247,0.00014247,2]
[404438764,1770141573591,-1000.0,0.00014247,2]
[404438765,1770141573618,-280.69210495,0.00014247,2]
[404438766,1770141573646,-3361.11029725,0.00014249,2]
[404438767,1770141579131,-5000.0,0.00014104,2]
[404438768,1770141579303,-709.9167016,0.00014249,2]
[404438769,1770141579335,-283.04335247,0.00014312,2]
[404438770,1770141579367,-1131.04123646,0.00014312,2]
[404438771,1770141579396,-180.61083864,0.00014349,2]
[404438772,1770141579424,-342.43042464,0.00014368,2]
[404438773,1770141579453,-391.34905673,0.00014368,2]
[404438774,1770141579482,-198.66942324,0.00014368,2]
[404438780,1770141607516,-5000.0,0.00014225,2]
[404438781,1770141607922,-623.0,0.00014225,2]
[404438783,1770141620641,5000.0,0.00014247,2]
[404438786,1770141649776,3754.01,0.00014147,2]
[404438787,1770141649800,10000.01,0.00014147,2]
[404438789,1770141657773,-876.2152891,0.00014147,2]
[404438790,1770141661387,-1752.4305782,0.00014147,2]
[404438791,1770141664415,-3504.8611564,0.00014147,2]
[404438792,1770141664479,500.0,0.00013273,2]
[404438793,1770141664776,500.0,0.00013273,2]
[404438794,1770141667749,500.0,0.00013273,2]
[404438795,1770141667853,-500.0,0.00013699,2]
[404438796,1770141667883,-150.16357316,0.00013699,2]
[404438797,1770141667914,-500.0,0.00013699,2]
[404438798,1770141667945,-1000.0,0.00013821,2]
[404438799,1770141667974,-1000.0,0.00013821,2]
[404438800,1770141668002,-1000.0,0.00013821,2]
[404438801,1770141671746,-500.0,0.00013699,2]
[404438802,1770141671777,-2990.2876872,0.00014147,2]
[404438803,1770141677616,500.0,0.00013699,2]
[404438804,1770141678147,1000.0,0.00013821,2]
[404438805,1770141678198,500.0,0.00013273,2]
[404438806,1770141678844,500.0,0.00013699,2]
[404438807,1770141682231,519.4346256,0.00013273,2]
[404438808,1770141682252,100.15525829,0.00013273,2]
[404438809,1770141686856,3557.92472778,0.00014162,2]
[404438810,1770141689238,500.0,0.00013699,2]
[404438811,1770141691200,500.0,0.00013273,2]
[404438812,1770141691823,300.0,0.00013673,2]
[404438813,1770141692494,500.0,0.00013273,2]
[404438818,1770141709874,1958.96070739,0.00013699,2]
[404438839,1770141727754,150.0,0.00013673,2]
[404438845,1770141732723,3041.03929261,0.00013699,2]
[404438918,1770141782948,300.0,0.00013698,2]
[404438924,1770141787003,500.0,0.00013273,2]
[404438925,1770141787211,500.0,0.00013273,2]
[404438926,1770141787241,500.0,0.00013273,2]
[404438933,1770141798210,500.0,0.00013273,2]
[404438943,1770141807117,1250.01,0.00013699,2]
[404438944,1770141807140,3337.29789536,0.00013699,2]
[404438948,1770141811811,500.0,0.00013273,2]
[404438949,1770141812788,500.0,0.00013273,2]
[404438950,1770141814736,300.0,0.00013673,2]
[404438963,1770141830484,412.69210464,0.00013699,2]
[404438973,1770141842970,300.0,0.00013698,2]
[404438974,1770141843438,500.47862855,0.00013273,2]
[404438975,1770141843900,500.0,0.00013273,2]
[404438992,1770141902428,300.0,0.00013698,2]
[404438993,1770141906831,500.0,0.00013273,2]
[404438994,1770141906865,500.0,0.00013273,2]
[404438995,1770141906910,500.0,0.00013273,2]
[404438996,1770141906937,500.0,0.00013273,2]
[404438997,1770141907154,500.0,0.00013273,2]
[404438998,1770141907747,849.54137145,0.00013698,2]
[404438999,1770141907768,350.45862855,0.00013698,2]
[404439000,1770141919922,500.0,0.00013273,2]
[404439001,1770141930141,500.0,0.00013273,2]
[404439002,1770141931046,500.0,0.00013273,2]
[404439003,1770141931779,-500.0,0.00013699,2]
[404439004,1770141931807,-500.0,0.00013699,2]
[404439005,1770141931838,-305.19550882,0.00013699,2]
[404439006,1770141931975,-500.0,0.00013699,2]
[404439007,1770141932008,-500.0,0.00013699,2]
[404439008,1770141932036,-500.0,0.00013699,2]
[404439009,1770141932064,-160.36743751,0.00013699,2]
[404439010,1770141932092,-500.0,0.00013699,2]
[404439011,1770141932119,-500.0,0.00013699,2]
[404439012,1770141932146,-500.0,0.00013699,2]
[404439013,1770141932178,-299.9295039,0.00013699,2]
[404439014,1770141932518,-500.0,0.00013699,2]
[404439015,1770141932547,-500.0,0.00013699,2]
[404439016,1770141932574,-500.0,0.00013699,2]
[404439017,1770141932601,-287.21402463,0.00013699,2]
[404439018,1770141932630,-344.1532108,0.00013699,2]
[404439019,1770141932658,-500.79279263,0.00013699,2]
[404439020,1770141932687,-500.0,0.00013699,2]
[404439021,1770141932714,-556.02057263,0.00013699,2]
[404439022,1770141932740,-500.0,0.00013699,2]
[404439023,1770141932769,-500.0,0.00013699,2]
[404439024,1770141932798,-123.64879862,0.00013699,2]
[404439025,1770141932829,500.33382077,0.00013273,2]
[404439026,1770141932968,-376.35120138,0.00013699,2]
[404439027,1770141932994,-500.0,0.00013699,2]
[404439028,1770141933023,-345.17342818,0.00013699,2]
[404439029,1770141933288,500.0,0.00013699,2]
[404439030,1770141933319,500.0,0.00013699,2]
[404439031,1770141933445,500.0,0.00013273,2]
[404439104,1770142023514,500.0,0.00013273,2]
[404439105,1770142026391,500.0,0.00013699,2]
[404439106,1770142026420,500.0,0.00013273,2]
[404439107,1770142026775,500.0,0.00013699,2]
[404439108,1770142026802,500.0,0.00013699,2]
[404439109,1770142036780,500.0,0.00013699,2]
[404439110,1770142038169,500.0,0.00013273,2]
[404439114,1770142040188,500.0,0.00013699,2]
[404439125,1770142045685,500.0,0.00013699,2]
[404439128,1770142049459,501.32176623,0.00013699,2]
[404439129,1770142049686,500.0,0.00013273,2]
[404439130,1770142050093,500.0,0.00013273,2]
[404439131,1770142050683,55.63897465,0.00013699,2]
[404439132,1770142050713,444.36102535,0.00013699,2]
[404439133,1770142050869,500.0,0.00013273,2]
[404439163,1770142084125,209.53,9.99e-05,2]
[404439167,1770142086932,500.0,0.00013699,2]
[404439305,1770142147808,500.0,0.00013273,2]
[404439311,1770142150119,500.0,0.00013273,2]
[404439312,1770142150179,500.0,0.00013273,2]
[404439325,1770142160736,500.0,0.00013273,2]
[404439332,1770142163345,500.0,0.00013699,2]
[404439340,1770142171424,295.30906235,0.00013273,2]
[404439341,1770142172541,500.0,0.00013273,2]
[404439342,1770142172855,500.0,0.00013273,2]
[404439378,1770142197962,2035.282418,0.00013699,2]
[404439390,1770142202573,170.19608329,0.00013443,2]
[404439395,1770142206197,500.0,0.00013699,2]
[404439396,1770142207713,227.70431209,0.00013699,2]
[404439397,1770142208063,165.72224045,0.00013699,2]
[404439398,1770142208741,500.0,0.00013273,2]
[404439399,1770142208904,500.0,0.00013699,2]
[404439400,1770142209270,300.0,0.00013673,2]
[404439402,1770142223533,1818.60288684,0.00013699,2]
[404439429,1770142232414,-616.0,0.00013733,2]
[404439431,1770142232425,-226.77425957,0.00013733,2]
[404439433,1770142232434,-344.96268324,0.00013733,2]
[404439435,1770142232443,-300.0,0.0001382,2]
[404439437,1770142232453,-1200.0,0.0001382,2]
[404439439,1770142232462,-1000.0,0.00013821,2]
[404439441,1770142232471,-1000.0,0.00013821,2]
[404439443,1770142232480,-1000.0,0.00013821,2]
[404439444,1770142232489,-1000.0,0.00013821,2]
[404439446,1770142232499,-461.77578399,0.00013821,2]
[404439448,1770142232508,-1000.0,0.00013821,2]
[404439450,1770142232517,-1000.0,0.00013821,2]
[404439452,1770142232528,-1000.0,0.00013821,2]
[404439453,1770142232538,-1000.0,0.00013821,2]
[404439454,1770142232547,-1000.0,0.00013821,2]
[404439455,1770142232556,-761.6332732,0.00013821,2]
[404439484,1770142238406,-238.3667268,0.00013821,2]
[404439486,1770142238415,-1000.0,0.00013821,2]
[404439488,1770142238424,-1000.0,0.00013821,2]
[404439490,1770142238433,-500.0,0.00013821,2]
[404439492,1770142238443,-1000.0,0.00013821,2]
[404439494,1770142238452,-170.19608329,0.00013865,2]
[404439496,1770142238462,-1000.0,0.00013973,2]
[404439498,1770142238471,-5007.0712309,0.00014024,2]
[404439500,1770142238481,-3562.14862395,0.00014147,2]
[404439502,1770142238491,-300.0,0.00014221,2]
[404439504,1770142238500,-600.0,0.00014221,2]
[404439506,1770142238510,-250.0,0.00014233,2]
[404439508,1770142238519,-765.0,0.00014234,2]
[404439510,1770142238529,-500.0,0.00014246,2]
[404439512,1770142238538,-500.0,0.00014246,2]
[404439514,1770142238548,-500.0,0.00014247,2]
[404439515,1770142238557,-107.4085186,0.00014247,2]
[404439518,1770142238568,-892.5914814,0.00014247,2]
[404439520,1770142238578,-1000.0,0.00014247,2]
[404439522,1770142238587,-1000.0,0.00014247,2]
[404439524,1770142238596,-934.85355421,0.00014247,2]
[404439526,1770142238606,-1000.0,0.00014247,2]
[404439529,1770142238626,-693.96539926,0.00014247,2]
[404439531,1770142238635,-1000.0,0.00014247,2]
[404439533,1770142238645,-348.51110734,0.00014247,2]
[404439535,1770142238655,-1116.61497936,0.00014247,2]
[404439537,1770142238664,-1000.0,0.00014247,2]
[404439539,1770142238675,-268.72725222,0.00014247,2]
[404440050,1770142262582,-554.02490193,0.00014247,2]
[404440051,1770142262596,-177.24784585,0.00014247,2]
[404440052,1770142262605,-1000.0,0.00014247,2]
[404440053,1770142262615,-1000.0,0.00014247,2]
[404440054,1770142262624,-765.0,0.00014267,2]
[404440055,1770142262633,-500.0,0.00014367,2]
[404440056,1770142262643,-231.00709515,0.00014367,2]
[404440057,1770142262652,-500.0,0.00014367,2]
[404440058,1770142262661,-500.0,0.00014367,2]
[404440059,1770142262670,-500.0,0.00014367,2]
[404440060,1770142262679,-500.0,0.00014367,2]
[404440061,1770142262688,-500.0,0.00014367,2]
[404440062,1770142262699,-500.0,0.00014367,2]
[404440063,1770142262708,-500.0,0.00014367,2]
[404440064,1770142262717,-500.0,0.00014367,2]
[404440065,1770142262727,-500.0,0.00014367,2]
[404440066,1770142262736,-500.0,0.00014367,2]
[404440067,1770142262745,-500.0,0.00014367,2]
[404440068,1770142262755,-500.0,0.00014367,2]
[404440069,1770142262764,-500.0,0.00014367,2]
[404440070,1770142262774,-500.0,0.00014367,2]
[404440071,1770142262783,-500.0,0.00014367,2]
[404440072,1770142262792,-500.0,0.00014367,2]
[404440073,1770142262802,-402.14854324,0.00014367,2]
[404440074,1770142262811,-500.0,0.00014367,2]
[404440075,1770142262821,-500.0,0.00014367,2]
[404440076,1770142262831,-500.0,0.00014367,2]
[404440077,1770142262840,-153.0,0.00014368,2]
[404440078,1770142262849,-166.0,0.00014368,2]
[404440079,1770142262859,-1440.87186449,0.00014368,2]
[404440080,1770142262868,-1500.0,0.00014368,2]
[404440081,1770142262878,-1500.0,0.00014368,2]
[404440082,1770142262887,-1500.0,0.00014368,2]
[404440083,1770142262896,-1287.00479948,0.00014368,2]
[404440084,1770142262906,-1500.0,0.00014368,2]
[404440085,1770142262918,-1500.0,0.00014368,2]
[404440086,1770142262928,-361.13333414,0.00014368,2]
[404440087,1770142262937,-1500.0,0.00014368,2]
[404440088,1770142262948,-1000.0,0.00014368,2]
[404440089,1770142262958,-1000.0,0.00014368,2]
[404440090,1770142262967,-1500.0,0.00014368,2]
[404440091,1770142262977,-1500.0,0.00014368,2]
[404440092,1770142262988,-765.0,0.00014401,2]
[404440093,1770142262997,-765.0,0.00014406,2]
[404440094,1770142263007,-765.0,0.00014424,2]
[404440095,1770142263017,-302.863572,0.00014429,2]
[404440096,1770142263026,-765.0,0.00014436,2]
[404440097,1770142263035,-765.0,0.00014549,2]
[404440098,1770142263045,-765.0,0.00014592,2]
[404440099,1770142263054,-765.0,0.00014663,2]
[404440100,1770142263064,-488.92,0.00014695,2]
[404440101,1770142263074,-319.80294565,0.00014701,2]
[404440102,1770142263086,-445.19705435,0.00014701,2]
[404440103,1770142263095,-190.0,0.00014732,2]
[404440104,1770142263104,-300.0,0.00014768,2]
[404440105,1770142263113,-190.0,0.00014792,2]
[404440106,1770142263123,-1000.0,0.00014795,2]
[404440107,1770142263132,-1500.0,0.00014795,2]
[404440108,1770142263141,-1500.0,0.00014795,2]
[404440109,1770142263151,-765.0,0.00014825,2]
[404440110,1770142263160,-765.0,0.00014833,2]
[404440111,1770142263169,-190.0,0.00014849,2]
[404440112,1770142263178,-163.3631999,0.00014864,2]
[404440113,1770142263187,-194.0,0.0001489,2]
[404440114,1770142263199,-155.65099289,0.00014892,2]
[404440115,1770142263210,-780.67453161,0.00014892,2]
[404440116,1770142263219,-160.918,0.00014892,2]
[404440117,1770142263229,-1117.2286056,0.00014892,2]
[404440118,1770142263238,-1500.0,0.00014916,2]
[404440119,1770142263248,-1500.0,0.00014916,2]
[404440120,1770142263257,-1402.44473517,0.00014916,2]
[404440121,1770142263267,-2000.0,0.00014916,2]
[404440122,1770142263276,-2000.0,0.00014916,2]
[404440123,1770142263285,-194.0,0.00014971,2]
[404440124,1770142263295,-150.05516993,0.00015018,2]
[404440125,1770142263304,-302.863572,0.00015036,2]
[404440126,1770142263313,-228.302062,0.00015068,2]
[404440127,1770142263322,-249.2873977,0.00015086,2]
[404440128,1770142263332,-212.0,0.00015152,2]
[404440129,1770142263341,-212.0,0.00015187,2]
[404440130,1770142263351,-966.0,0.00015202,2]
[404440131,1770142263360,-300.0,0.00015214,2]
[404440132,1770142263369,-300.0,0.00015214,2]
[404440133,1770142263379,-300.0,0.00015214,2]
[404440134,1770142263388,-300.0,0.00015214,2]
[404440135,1770142263397,-300.0,0.00015214,2]
[404440136,1770142263407,-300.0,0.00015214,2]
[404440137,1770142263416,-300.0,0.00015214,2]
[404440138,1770142263426,-300.0,0.00015214,2]
[404440139,1770142263435,-300.0,0.00015214,2]
[404440140,1770142263447,-300.0,0.00015214,2]
[404440141,1770142263456,-300.0,0.00015214,2]
[404440142,1770142263466,-300.0,0.00015214,2]
[404440143,1770142263475,-300.0,0.00015214,2]
[404440144,1770142263484,-300.0,0.00015214,2]
[404440145,1770142263493,-300.0,0.00015214,2]
[404440146,1770142263502,-97.03225068,0.00015252,2]
[404440147,1770142263542,-114.96774932,0.00015252,2]
[404440148,1770142263551,-212.0,0.00015265,2]
[404440149,1770142263560,-194.0,0.00015279,2]
[404440150,1770142263569,-2000.0,0.00015342,2]
[404440151,1770142263578,-2000.0,0.00015342,2]
[404440152,1770142263587,-500.0,0.00015464,2]
[404440153,1770142263597,-103.87427456,0.00015464,2]
[404440154,1770142279292,500.0,0.00013699,2]
[404440159,1770142285916,-151.0,0.0001589,5]
[404440166,1770142288136,500.0,0.00013699,2]
[404440167,1770142288626,500.0,0.00013273,2]
[404440212,1770142326896,500.0,0.00013273,2]
[404440218,1770142383709,500.0,0.00013273,2]
[404440219,1770142383837,504.04510864,0.00013273,2]
[404440220,1770142383888,645.23912938,0.00013273,2]
[404440221,1770142384147,503.41867305,0.00013273,2]
[404440223,1770142403939,-500.0,0.00013699,2]
[404440224,1770142403968,-500.0,0.00013699,2]
[404440225,1770142403996,-500.0,0.00013699,2]
[404440226,1770142404026,-501.7936861,0.00013699,2]
[404440227,1770142404055,-500.0,0.00013699,2]
[404440228,1770142404084,-500.0,0.00013699,2]
[404440229,1770142421384,-1000.0,0.00013821,2]
[404440230,1770142421416,-900.30319952,0.00013821,2]
[404440231,1770142421446,-300.0,0.00013972,2]
[404440232,1770142421477,-300.0,0.00013972,2]
[404440233,1770142421506,-300.0,0.00013972,2]
[404440234,1770142421534,-300.0,0.00013972,2]
[404440235,1770142421564,-300.0,0.00013972,2]
[404440236,1770142421593,-300.0,0.00013972,2]
[404440237,1770142421623,-300.0,0.00013972,2]
[404440238,1770142421768,-300.0,0.00013972,2]
[404440239,1770142421797,-300.0,0.00013972,2]
[404440240,1770142421827,-300.0,0.00013972,2]
[404440241,1770142422066,-300.0,0.00013972,2]
[404440242,1770142422101,-300.0,0.00013972,2]
[404440243,1770142422132,-300.0,0.00013972,2]
[404440244,1770142422161,-300.0,0.00013972,2]
[404440245,1770142422191,-300.0,0.00013972,2]
[404440246,1770142422221,-1000.0,0.00014247,2]
[404440247,1770142422251,-501.44248155,0.00014247,2]
[404440248,1770142422277,-1000.0,0.00014247,2]
[404440249,1770142422304,-997.1250369,0.00014247,2]
[404440250,1770142422397,-2.8749631,0.00014247,2]
[404440251,1770142422427,-600.0,0.0001425,2]
[404440252,1770142436349,-319.31878942,0.00014301,2]
[404440253,1770142436380,-319.31878942,0.00014301,2]
[404440254,1770142449090,500.0,0.00013273,2]
[404440255,1770142449139,484.10367387,0.00013821,2]
[404440256,1770142449547,1000.0,0.00014247,2]
[404440257,1770142449594,500.0,0.00013699,2]
[404440282,1770142504459,-223.50610803,0.00014423,2]
[404440283,1770142504488,-1500.0,0.00014795,2]
[404440284,1770142504517,-1500.0,0.00014795,2]
[404440285,1770142504547,-1000.0,0.00014958,2]
[404440287,1770142504685,-150.09001209,0.00015018,2]
[404440289,1770142504716,-607.21673499,0.00015114,2]
[404440293,1770142506569,500.0,0.00013273,2]
[404440295,1770142506916,500.0,0.00013273,2]
[404440313,1770142516307,-2575.77,0.00015342,2]
[404440320,1770142522480,-500.0,0.00013699,2]
[404440321,1770142522510,-1000.0,0.00014247,2]
[404440322,1770142522540,-698.91944826,0.00014795,2]
[404440323,1770142522568,-753.70110348,0.00015342,2]
[404440325,1770142522669,-3764.79820986,0.00015342,2]
[404440387,1770142567224,500.0,0.00013699,2]
[404440388,1770142567274,1000.0,0.00014247,2]
[404440404,1770142579324,-1500.0,0.00014795,2]
[404440405,1770142579354,-205.1489348,0.00014889,2]
[404440406,1770142579383,-1589.7121304,0.00015189,2]
[404440407,1770142579459,-1910.2878696,0.00015189,2]
[404440413,1770142586351,-1500.0,0.00015189,2]
[404440414,1770142586379,-227.9940488,0.00015266,2]
[404440415,1770142586406,-329.97068666,0.00015342,2]
[404440416,1770142586433,-2000.0,0.00015342,2]
[404440498,1770142624067,500.0,0.00013699,2]
[404440499,1770142624111,500.0,0.00013699,2]
[404440500,1770142624138,462.30366485,0.00013699,2]
[404440501,1770142624168,500.0,0.00013273,2]
[404440502,1770142624427,500.0,0.00013699,2]
[404440503,1770142624575,500.0,0.00013273,2]
[404440504,1770142624715,560.17186043,0.00013699,2]
[404440516,1770142630374,-3147.6,0.00015342,2]
[404440517,1770142630456,-182.33447472,0.00015342,2]
[404440518,1770142630672,-3522.47552528,0.00015342,2]
[404440519,1770142630701,-212.0,0.00015551,2]
[404440520,1770142630728,-789.77,0.00015559,2]
[404440521,1770142630756,-212.0,0.0001556,2]
[404440522,1770142630789,-224.65537744,0.00015644,2]
[404440523,1770142630873,-78.20819456,0.00015644,2]
[404440524,1770142634326,-380.83028638,0.00015367,2]
[404440525,1770142634354,-435.234613,0.0001563,2]
[404440526,1770142634508,-300.0,0.00015648,2]
[404440527,1770142634541,-300.0,0.00015648,2]
[404440528,1770142634570,-300.0,0.00015648,2]
[404440529,1770142634598,-300.0,0.00015648,2]
[404440530,1770142634627,-300.0,0.00015648,2]
[404440531,1770142634657,-300.0,0.00015648,2]
[404440532,1770142634687,-300.0,0.00015648,2]
[404440533,1770142634716,-300.0,0.00015648,2]
[404440534,1770142634744,-300.0,0.00015648,2]
[404440535,1770142634772,-300.0,0.00015648,2]
[404440536,1770142634802,-300.0,0.00015648,2]
[404440537,1770142634832,-300.0,0.00015648,2]
[404440538,1770142634864,-300.0,0.00015648,2]
[404440539,1770142634894,-267.88020124,0.00015648,2]
[404440540,1770142635139,-32.11979876,0.00015648,2]
[404440557,1770142637496,-239.07930738,0.00013699,2]
[404440558,1770142637527,-300.0,0.00015648,2]
[404440559,1770142637557,-150.05982243,0.0001573,2]
[404440560,1770142639833,500.0,0.00013273,2]
[404440561,1770142639879,1500.0,0.00014368,2]
[404440562,1770142639941,1000.0,0.00013821,2]
[404440563,1770142640052,2000.0,0.00014916,2]
[404440564,1770142640094,2500.0,0.00015464,2]
[404440565,1770142642548,1000.0,0.00014247,2]
[404440566,1770142642583,121.73174038,0.00013699,2]
[404440567,1770142642605,378.26825962,0.00013699,2]
[404440569,1770142642637,1500.0,0.00014795,2]
[404440572,1770142642695,424.21621103,0.00015342,2]
[404440606,1770142647293,-501.08973292,0.00013699,2]